bitfinex-derivatives/quotes_ETHF0:USTF0_20250626
["timestamp","ask_amount","ask_price","bid_price","bid_amount"]
[1750940314816,0.81715,2446.5,2446.4,1.48336]
[1750940315021,1.76138401,2446.5,2446.4,1.48336]
[1750940315326,0.8173,2446.1,2445.8,6.573]
[1750940315518,0.8173,2446.1,2446.0,1.4817]
[1750940316417,0.81727,2446.2,2446.1,0.81727]
[1750940316625,4.02503,2446.3,2446.2,0.81725]
[1750940317119,3.2078,2446.3,2446.2,0.81725]
[1750940317423,4.02501,2446.3,2446.2,0.81725]
[1750940317623,4.96995136,2446.3,2446.2,0.81725]
[1750940318016,4.15274136,2446.3,2446.2,0.81725]
[1750940318320,4.96999136,2446.3,2446.1,1.3431]
[1750940318514,4.96999136,2446.3,2446.2,0.81725]
[1750940318515,4.02505,2446.3,2446.2,0.81725]
[1750940318716,4.9701163,2446.3,2446.2,0.81725]
[1750940319925,0.81725,2446.2,2446.1,2.16036]
[1750940320120,1.7623163,2446.2,2446.1,2.16036]
[1750940320425,0.9450663,2446.2,2446.1,2.16036]
[1750940321124,1.7623163,2446.2,2446.1,2.16036]
[1750940321930,0.9450663,2446.2,2446.1,2.16036]
[1750940322233,1.7623163,2446.2,2446.1,2.16036]
[1750940322528,1.7623163,2446.2,2446.1,0.81728]
[1750940322727,0.81728,2446.1,2446.0,1.48169]
[1750940323332,0.81728,2446.1,2445.8,2.42521828]
[1750940323333,0.81735,2445.9,2445.8,2.42521828]
[1750940323532,0.81735,2445.9,2445.7,3.2078]
[1750940323533,0.81738,2445.8,2445.7,2.42521828]
[1750940323724,0.81741,2445.7,2445.6,10.51834828]
[1750940324528,2.2413,2445.8,2445.7,0.81741]
[1750940324826,5.25085,2446.3,2445.8,0.81738]
[1750940325027,0.94591702,2446.2,2445.8,2.64722032]
[1750940325228,0.81731,2446.0,2445.9,0.81733]
[1750940325728,0.81731,2446.1,2445.9,0.81733]
[1750940326334,0.81731,2446.1,2446.0,0.81731]
[1750940326632,1.76329119,2446.1,2446.0,0.81731]
[1750940327731,0.81734,2446.0,2445.9,0.81733]
[1750940328630,0.8173,2446.1,2445.9,0.81733]
[1750940328831,0.8173,2446.1,2446.0,0.81731]
[1750940329225,1.76389544,2446.1,2446.0,0.81731]
[1750940329729,1.76389544,2446.1,2445.8,1.4536]
[1750940329730,0.94659544,2446.1,2445.7,2.42521828]
[1750940329933,0.81736,2445.9,2445.8,7.37735]
[1750940330130,0.81736,2445.9,2445.8,0.81735]
[1750940330330,0.81739,2445.8,2445.7,0.81739]
[1750940330634,1.63319259,2445.8,2445.5,2.42521828]
[1750940330823,1.63319259,2445.8,2445.4,2.42521828]
[1750940330824,0.81748,2445.5,2445.4,2.42521828]
[1750940331027,0.81748,2445.5,2445.3,2.42521828]
[1750940331028,0.81751,2445.4,2445.3,2.42521828]
[1750940331229,0.81755,2445.3,2445.2,2.42521828]
[1750940331435,7.35937032,2445.3,2445.2,2.42521828]
[1750940331734,0.81758,2445.2,2445.1,2.42521828]
[1750940331933,7.96182032,2445.3,2445.0,8.98521828]
[1750940331934,0.81762,2445.1,2445.0,8.98521828]
[1750940332134,0.81762,2445.1,2445.0,2.42521828]
[1750940332336,6.13218,2445.3,2445.0,2.42521828]
[1750940332533,6.13218,2445.3,2445.1,0.81762]
[1750940333232,0.81758,2445.2,2445.0,3.24284828]
[1750940333439,0.81758,2445.2,2445.1,0.81762]
[1750940333737,6.13217,2445.3,2445.1,0.81762]
[1750940333938,0.81758,2445.2,2445.1,0.81762]
[1750940334140,0.81762,2445.1,2445.0,0.81765]
[1750940334436,0.81762,2445.1,2444.9,3.24287828]
[1750940334437,0.81764,2445.1,2444.9,3.24287828]
[1750940334745,0.81763,2445.1,2444.9,3.24287828]
[1750940334932,0.8176,2445.2,2444.9,2.42521828]
[1750940335133,0.8176,2445.2,2445.1,0.81762]
[1750940335334,0.8176,2445.2,2445.0,0.81763]
[1750940335634,0.8176,2445.2,2445.1,0.81762]
[1750940335836,3.8946,2445.3,2445.2,0.81758]
[1750940336035,0.6868,2445.3,2445.2,0.81758]
[1750940336937,1.50435,2445.3,2445.2,0.81758]
[1750940337237,3.8946,2445.3,2445.2,0.81758]
[1750940340642,0.81759,2445.2,2445.0,0.81762]
[1750940340838,1.50979,2445.2,2445.0,0.81762]
[1750940341342,1.50979,2445.2,2445.1,0.81762]
[1750940341543,0.6922,2445.2,2445.1,0.81762]
[1750940341840,0.6922,2445.2,2445.0,0.81762]
[1750940342048,2.64722032,2445.1,2444.7,3.24294828]
[1750940342345,0.81772,2444.8,2444.7,0.81773]
[1750940342539,6.67271032,2444.9,2444.8,0.81772]
[1750940342745,10.462,2445.2,2445.1,0.81762]
[1750940342948,0.81764,2445.1,2444.9,0.81766]
[1750940343142,0.81765,2445.0,2444.9,0.81766]
[1750940343742,0.81771,2444.9,2444.8,0.81771]
[1750940344248,0.81769,2444.9,2444.8,0.8177]
[1750940344746,3.46486032,2445.1,2445.0,0.81765]
[1750940345047,0.81765,2445.0,2444.9,0.81766]
[1750940345651,0.81768,2444.9,2444.8,0.8177]
[1750940345850,0.81767,2445.0,2444.9,0.81768]
[1750940346245,2.64722032,2445.1,2444.7,2.42521828]
[1750940346451,0.81769,2444.9,2444.8,0.8177]
[1750940346845,0.81772,2444.8,2444.7,2.42521828]
[1750940347048,0.81772,2444.8,2444.7,3.24296828]
[1750940347347,3.2078,2444.8,2444.5,3.11711828]
[1750940347542,1.4536,2444.7,2444.5,0.6919]
[1750940347951,0.81778,2444.6,2444.5,0.6919]
[1750940348456,0.81782,2444.5,2444.4,6.563]
[1750940348751,0.81782,2444.5,2444.4,7.38085]
[1750940348947,0.81782,2444.5,2444.4,6.563]
[1750940349250,0.81782,2444.5,2444.4,7.38085]
[1750940350049,0.81782,2444.5,2444.4,6.563]
[1750940350350,0.81785,2444.5,2444.4,0.81784]
[1750940350550,0.81785,2444.5,2444.4,1.48734]
[1750940350949,0.8178,2444.6,2444.5,0.81779]
[1750940351548,0.8178,2444.6,2444.5,2.25509]
[1750940351949,0.7276,2444.7,2444.6,0.81778]
[1750940351950,1.54537,2444.7,2444.6,0.81778]
[1750940352150,0.81778,2444.6,2444.5,2.25509]
[1750940352344,1.54536,2444.7,2444.6,0.81778]
[1750940352550,3.2078,2444.8,2444.7,0.81775]
[1750940352756,3.2078,2444.8,2444.7,2.25505]
[1750940353151,0.81759,2445.2,2444.7,9.6451]
[1750940353349,5.85502032,2445.3,2444.9,0.81767]
[1750940353549,0.81764,2445.1,2444.9,0.81767]
[1750940353960,0.81764,2445.1,2444.8,2.116]
[1750940354256,0.81768,2444.9,2444.8,2.116]
[1750940354453,0.81768,2444.9,2444.8,8.679]
[1750940355356,0.81768,2444.9,2444.8,9.49672]
[1750940356258,1.76147837,2444.9,2444.8,9.49672]
[1750940356459,0.94379837,2444.9,2444.8,9.49672]
[1750940356854,0.81767,2445.0,2444.9,0.81768]
[1750940357056,0.81768,2444.9,2444.8,9.49769]
[1750940357354,0.81767,2445.0,2444.9,0.81767]
[1750940357861,1.76178199,2445.0,2444.9,0.81767]
[1750940358857,0.94411199,2445.0,2444.9,0.81767]
[1750940359058,0.94411199,2445.0,2444.9,2.13907]
[1750940359254,4.02536,2445.3,2445.2,0.81758]
[1750940359564,0.8176,2445.2,2445.1,0.8176]
[1750940359764,1.76132269,2445.2,2445.1,0.8176]
[1750940360058,0.94372269,2445.2,2445.1,0.8176]
[1750940360855,0.94372269,2445.2,2445.1,3.46482032]
[1750940361162,0.94372269,2445.2,2445.1,0.8176]
[1750940361761,0.81764,2445.1,2444.9,3.96862032]
[1750940362061,0.81764,2445.1,2445.0,7.36865]
[1750940362261,0.81757,2445.3,2445.2,0.81758]
[1750940362464,1.76241978,2445.3,2445.2,0.81758]
[1750940362863,0.81758,2445.2,2445.1,0.81759]
[1750940363163,1.76242978,2445.2,2445.1,2.26409]
[1750940363365,1.76242978,2445.2,2445.1,0.81759]
[1750940363558,0.81761,2445.1,2445.0,7.36863]
[1750940364454,1.75977486,2445.1,2445.0,7.36863]
[1750940365063,0.94216486,2445.1,2445.0,7.36863]
[1750940365265,1.75978486,2445.1,2445.0,7.36863]
[1750940365565,0.94216486,2445.1,2445.0,7.36863]
[1750940365859,1.75978486,2445.1,2445.0,7.36863]
[1750940367266,1.75978486,2445.1,2445.0,0.81763]
[1750940367759,0.94216486,2445.1,2445.0,0.81763]
[1750940368467,0.94216486,2445.1,2445.0,2.21443]
[1750940369468,1.75978486,2445.1,2445.0,2.21443]
[1750940371371,0.81772,2444.8,2444.7,6.551]
[1750940371871,1.76035217,2444.8,2444.7,6.551]
[1750940372286,1.76035217,2444.8,2444.7,0.81775]
[1750940372468,0.94263217,2444.8,2444.7,0.81775]
[1750940372771,3.2078,2445.1,2445.0,0.81765]
[1750940372973,4.96824495,2445.1,2445.0,0.81765]
[1750940373177,4.15062495,2445.1,2445.0,0.81765]
[1750940373873,4.15062495,2445.1,2445.0,2.95405]
[1750940375376,0.94282495,2445.1,2445.0,2.95405]
[1750940379070,1.76044495,2445.1,2445.0,2.95405]
[1750940379268,1.76044495,2445.1,2445.0,1.54455]
[1750940379470,0.94282495,2445.1,2445.0,1.54455]
[1750940380778,1.76044495,2445.1,2445.0,1.54455]
[1750940381674,0.81765,2445.0,2444.9,0.81766]
[1750940381866,2.48660495,2445.0,2444.8,10.4293]
[1750940382071,1.54378,2445.0,2444.9,0.81768]
[1750940382270,2.48698263,2445.0,2444.9,0.81768]
[1750940382780,0.81768,2444.9,2444.8,11.24699]
[1750940382982,1.76088263,2444.9,2444.8,11.24699]
[1750940383784,1.76088263,2444.9,2444.8,3.2078]
[1750940384082,3.12928263,2444.9,2444.8,3.2078]
[1750940384784,5.77650295,2444.9,2444.8,3.2078]
[1750940385082,0.81778,2444.6,2444.5,9.7588]
[1750940385288,3.46500032,2444.6,2444.5,3.2078]
[1750940385586,0.81788,2444.3,2444.2,12.86311828]
[1750940386182,1.76126472,2444.4,2444.2,10.4379]
[1750940386380,0.94339472,2444.3,2444.2,10.4379]
[1750940386589,0.94339472,2444.3,2444.2,11.25582]
[1750940387295,0.94339472,2444.3,2444.2,12.71652]
[1750940387988,0.81777,2444.7,2444.2,11.8986]
[1750940388282,0.81782,2444.5,2444.4,0.81783]
[1750940388483,1.76060105,2444.5,2444.4,0.81783]
[1750940388882,0.94278105,2444.5,2444.4,0.81783]
[1750940391486,0.8178,2444.6,2444.5,0.81782]
[1750940391682,3.09160038,2444.6,2444.5,0.81782]
[1750940392188,0.81782,2444.5,2444.4,0.81783]
[1750940392485,1.3313,2444.6,2444.5,0.81782]
[1750940392684,2.27365785,2444.6,2444.5,0.81782]
[1750940393187,0.94235785,2444.6,2444.5,0.81782]
[1750940393781,1.76013785,2444.6,2444.5,0.81782]
[1750940395179,0.81784,2444.5,2444.4,0.81783]
[1750940395491,0.81787,2444.4,2444.3,0.81786]
[1750940396599,3.2078,2444.4,2443.9,50.3198]
[1750940396895,2.21729,2444.6,2444.5,0.81782]
[1750940397081,0.94107854,2444.6,2444.5,0.81782]
[1750940399290,1.75885854,2444.6,2444.5,0.81782]
[1750940400393,0.81783,2444.5,2444.4,0.81783]
[1750940400695,1.75890854,2444.5,2444.4,0.81783]
[1750940401580,0.94107854,2444.5,2444.4,0.81783]
[1750940401781,1.75889854,2444.5,2444.4,0.81783]
[1750940403288,0.94107854,2444.5,2444.4,0.81783]
[1750940403594,1.75889854,2444.5,2444.4,0.81783]
[1750940407199,6.79609886,2444.5,2443.9,50.3198]
[1750940407386,0.81797,2444.1,2444.0,1.49895]
[1750940407592,0.81793,2444.2,2444.1,0.81795]
[1750940408489,1.51652,2444.3,2444.2,0.81792]
[1750940408801,2.45784542,2444.3,2444.2,0.81792]
[1750940409096,0.81794,2444.2,2444.0,0.681]
[1750940409298,0.81794,2444.2,2444.1,0.81793]
[1750940410293,0.81795,2444.1,2444.0,1.49896]
[1750940410498,0.81798,2444.0,2443.9,3.2078]
[1750940410800,0.81798,2444.1,2444.0,0.81797]
[1750940411796,0.81798,2444.0,2443.9,4.0258]
[1750940412001,1.76016908,2444.0,2443.9,4.0258]
[1750940412303,1.76016908,2444.0,2443.6,0.8181]
[1750940412304,0.8181,2443.7,2443.6,0.8181]
[1750940412602,4.02589,2443.7,2443.6,0.81812]
[1750940412804,4.02589,2443.7,2443.5,1.50783]
[1750940413591,3.2078,2443.7,2443.5,0.6897]
[1750940413798,3.2078,2443.7,2443.6,0.81812]
[1750940413994,4.96809931,2443.7,2443.5,1.50783]
[1750940414199,1.76033931,2443.6,2443.5,0.6897]
[1750940414395,0.94221931,2443.6,2443.5,1.50785]
[1750940414799,2.04475,2444.3,2443.5,8.8975]
[1750940414800,5.6278232,2444.3,2443.5,8.8975]
[1750940414995,3.0922232,2444.5,2444.4,0.81785]
[1750940415306,2.4322176,2444.5,2444.4,0.81785]
[1750940415604,1.6143976,2444.5,2444.4,0.81785]
[1750940416606,2.4322176,2444.5,2444.4,0.81785]
[1750940417302,1.6143976,2444.5,2444.4,0.81785]
[1750940420093,0.9421976,2444.5,2444.4,0.81785]
[1750940420299,0.9421976,2444.5,2444.4,2.24205]
[1750940422600,0.9421976,2444.5,2444.4,8.77105]
[1750940423703,0.9421976,2444.5,2444.4,7.34685]
[1750940424208,0.9421976,2444.5,2444.4,8.73695]
[1750940426006,0.9421976,2444.5,2444.4,1.3901]
[1750940426205,0.9421976,2444.5,2444.4,8.73695]
[1750940426906,0.9421976,2444.5,2444.4,7.34685]
[1750940427309,1.7600176,2444.5,2444.4,7.34685]
[1750940428113,0.9421976,2444.5,2444.4,7.34685]
[1750940428314,1.7600176,2444.5,2444.4,7.34685]
[1750940428606,1.7600176,2444.5,2444.4,0.81785]
[1750940428913,0.9421976,2444.5,2444.4,0.81785]
[1750940429311,1.7600176,2444.5,2444.4,0.81785]
[1750940431718,0.9421976,2444.5,2444.4,0.81785]
[1750940432611,0.9421976,2444.5,2444.4,2.19835]
[1750940436213,0.9421976,2444.5,2444.4,0.81785]
[1750940436821,1.7600176,2444.5,2444.4,0.81785]
[1750940438121,0.9421976,2444.5,2444.4,0.81785]
[1750940438324,0.9421976,2444.5,2444.4,2.26735]
[1750940438525,0.81777,2444.7,2444.6,0.81778]
[1750940438717,1.75823315,2444.7,2444.6,0.81778]
[1750940439125,0.8178,2444.6,2444.5,0.81779]
[1750940439326,1.75826315,2444.6,2444.5,0.81779]
[1750940440036,0.81782,2444.5,2444.4,2.26734]
[1750940440232,2.65140978,2444.6,2444.2,3.2078]
[1750940440535,2.65140978,2444.6,2444.2,10.55372]
[1750940440536,0.81788,2444.3,2444.2,10.55372]
[1750940440738,0.81788,2444.3,2444.2,3.2078]
[1750940441034,2.04471,2444.3,2443.9,6.528]
[1750940441335,4.02578,2444.0,2443.9,7.2566]
[1750940441934,3.2078,2444.0,2443.9,8.07462]
[1750940442128,0.81798,2444.0,2443.9,7.2566]
[1750940442526,0.81798,2444.0,2443.9,8.07462]
[1750940442727,0.81798,2444.0,2443.9,7.2566]
[1750940442930,1.75839952,2444.0,2443.9,7.2566]
[1750940443130,1.75839952,2444.0,2443.9,8.07462]
[1750940443440,1.75839952,2444.0,2443.9,7.2566]
[1750940443638,2.46419952,2444.0,2443.9,0.7286]
[1750940444234,2.46419952,2444.0,2443.9,1.54662]
[1750940444741,2.46419952,2444.0,2443.9,0.7286]
[1750940445040,1.64621952,2444.0,2443.5,49.56221828]
[1750940445241,1.75844952,2443.9,2443.8,0.81804]
[1750940445436,0.94041952,2443.9,2443.8,0.81804]
[1750940448145,0.94122853,2444.1,2443.7,4.09470978]
[1750940448451,0.94103962,2444.0,2443.9,0.81802]
[1750940449535,0.94103962,2444.0,2443.9,7.34702]
[1750940450245,0.94103962,2444.0,2443.9,8.79032]
[1750940452249,3.2078,2444.2,2444.1,0.81795]
[1750940452439,4.14887304,2444.2,2444.1,0.81795]
[1750940453245,4.96679304,2444.2,2444.1,0.81795]
[1750940454442,4.14887304,2444.2,2443.6,3.2078]
[1750940454647,1.75903304,2444.1,2444.0,0.81798]
[1750940456252,0.94107304,2444.1,2444.0,0.81798]
[1750940457548,0.94107304,2444.1,2444.0,7.33798]
[1750940461253,0.81782,2444.5,2444.4,0.81782]
[1750940461554,0.81779,2444.6,2444.5,0.8178]
[1750940461756,0.714,2444.8,2444.7,0.81775]
[1750940461951,3.2377232,2444.9,2444.6,7.2086]
[1750940462253,9.09690298,2445.0,2444.9,0.81768]
[1750940462554,9.09690298,2445.0,2444.7,0.81774]
[1750940462555,0.81773,2444.8,2444.7,0.81774]
[1750940462856,0.81775,2444.7,2444.6,0.6886]
[1750940463050,0.7088,2444.7,2444.6,1.50638]
[1750940463249,1.52655,2444.7,2444.6,1.50638]
[1750940463647,0.81778,2444.6,2444.5,0.8178]
[1750940463957,0.81782,2444.5,2444.4,3.2078]
[1750940464155,2.22102,2444.5,2444.4,3.2078]
[1750940464355,2.22102,2444.5,2444.4,4.02565]
[1750940464556,0.81782,2444.5,2444.4,4.02565]
[1750940465047,0.664,2444.6,2444.5,0.81782]
[1750940465048,1.48181,2444.6,2444.5,0.81782]
[1750940465254,0.81782,2444.5,2444.4,3.2078]
[1750940465843,2.22102,2444.5,2444.4,3.2078]
[1750940466652,1.4032,2444.5,2444.1,1.50653]
[1750940466859,0.81792,2444.2,2444.1,1.50653]
[1750940467951,1.52391,2444.3,2444.2,0.81792]
[1750940468747,0.706,2444.3,2444.1,0.6886]
[1750940468953,0.81792,2444.2,2444.1,1.50653]
[1750940470362,0.81792,2444.2,2444.1,0.6886]
[1750940470562,0.81795,2444.1,2444.0,7.33797]
[1750940470856,1.51935,2444.1,2444.0,7.33797]
[1750940471061,1.51935,2444.1,2444.0,9.76318828]
[1750940471363,0.7014,2444.1,2444.0,9.76318828]
[1750940471556,1.51935,2444.1,2444.0,3.24318828]
[1750940471763,1.51935,2444.1,2444.0,0.81797]
[1750940472362,0.7014,2444.1,2444.0,0.81797]
[1750940472556,1.51935,2444.1,2444.0,0.81797]
[1750940472962,0.7014,2444.1,2444.0,0.81797]
[1750940473561,1.51935,2444.1,2444.0,0.81797]
[1750940474165,0.9339204,2444.1,2443.9,6.52]
[1750940474465,5.64446414,2444.5,2444.1,0.81795]
[1750940474466,0.81793,2444.2,2444.1,0.81795]
[1750940474764,1.75192152,2444.2,2444.1,0.81795]
[1750940474966,0.93399152,2444.2,2444.1,0.81795]
[1750940475158,1.75191152,2444.2,2444.1,0.81795]
[1750940475359,1.75191152,2444.2,2444.1,1.52935]
[1750940475868,0.93399152,2444.2,2444.1,1.52935]
[1750940479075,1.75191152,2444.2,2444.1,0.7114]
[1750940479274,1.75191152,2444.2,2444.1,1.52935]
[1750940479476,0.93399152,2444.2,2444.1,1.52935]
[1750940480179,1.75191152,2444.2,2444.1,1.52935]
[1750940480778,0.93399152,2444.2,2444.1,1.52935]
[1750940480979,1.75191152,2444.2,2444.1,1.52935]
[1750940483578,0.93399152,2444.2,2444.1,1.52935]
[1750940485380,1.75191152,2444.2,2444.1,1.52935]
[1750940486280,0.93399152,2444.2,2444.1,1.52935]
[1750940486878,1.75191152,2444.2,2444.1,0.7114]
[1750940487386,0.81798,2444.0,2443.9,6.52]
[1750940487588,0.81798,2444.0,2443.9,7.33802]
[1750940488082,0.81802,2443.9,2443.8,3.12571828]
[1750940488284,0.81805,2443.8,2443.7,2.42521828]
[1750940488486,0.81808,2443.7,2443.6,1.51859]
[1750940488684,1.75076322,2443.7,2443.6,1.51859]
[1750940488983,10.096093,2443.7,2443.2,2.42521828]
[1750940489192,0.81822,2443.3,2443.2,0.81824]
[1750940489384,3.2078,2443.4,2443.1,0.6608]
[1750940489580,4.02601,2443.4,2443.2,0.81823]
[1750940489781,4.02601,2443.4,2443.1,0.6608]
[1750940489782,4.02601,2443.4,2443.3,0.81822]
[1750940490087,4.13972276,2443.4,2443.3,0.81822]
[1750940490685,0.93192276,2443.4,2443.3,0.81822]
[1750940491577,0.93192276,2443.4,2443.3,2.21852]
[1750940491983,0.8181,2443.7,2443.5,0.81812]
[1750940492183,0.9304963,2443.6,2443.5,0.81812]
[1750940492788,1.7486163,2443.6,2443.4,2.21847]
[1750940492991,0.81817,2443.5,2443.4,0.81818]
[1750940493187,0.81822,2443.3,2443.2,6.513]
[1750940493489,2.19969,2443.4,2443.3,0.81822]
[1750940493695,2.19969,2443.4,2443.2,0.81823]
[1750940493883,1.49989,2443.4,2443.3,0.81822]
[1750940494085,0.6817,2443.4,2443.3,0.81822]
[1750940496587,3.35120978,2443.6,2443.5,0.81815]
[1750940496787,1.54618,2443.7,2443.6,0.81812]
[1750940496989,0.81812,2443.6,2443.5,0.81813]
[1750940497183,1.54621,2443.7,2443.5,0.81813]
[1750940497382,0.81812,2443.6,2443.5,0.81813]
[1750940497580,0.81818,2443.4,2443.3,0.8182]
[1750940498195,0.81818,2443.4,2443.2,0.81823]
[1750940498688,0.81822,2443.3,2443.2,0.81823]
[1750940498891,0.81821,2443.4,2443.3,0.81822]
[1750940499196,0.81821,2443.4,2443.2,0.81824]
[1750940499393,3.96650978,2443.5,2443.1,3.2078]
[1750940499692,0.8183,2443.1,2442.9,1.3881]
[1750940499900,0.8183,2443.1,2443.0,0.81832]
[1750940500395,0.81836,2442.9,2442.8,4.02616]
[1750940500587,0.81834,2443.0,2442.9,0.81834]
[1750940500896,0.81833,2443.0,2442.9,0.81833]
[1750940501387,3.46971978,2443.1,2442.9,0.81834]
[1750940501593,0.81833,2443.0,2442.9,0.81834]
[1750940502297,0.81836,2442.9,2442.8,4.02617]
[1750940502593,0.81835,2443.0,2442.9,0.81836]
[1750940502996,6.67751978,2443.1,2443.0,0.81833]
[1750940503193,4.02609,2443.1,2443.0,0.81833]
[1750940503706,0.81833,2443.0,2442.9,0.81834]
[1750940503902,0.81836,2442.9,2442.8,0.81837]
[1750940504102,0.81836,2442.9,2442.8,1.01185918]
[1750940504510,0.81835,2443.0,2442.9,0.81836]
[1750940504708,0.81836,2442.9,2442.8,0.19348918]
[1750940504900,3.46976978,2442.9,2442.8,0.19348918]
[1750940506494,0.81843,2442.7,2442.5,0.81847]
[1750940506811,1.53226,2442.6,2442.5,0.81847]
[1750940507008,0.7138,2442.6,2442.5,0.81847]
[1750940507311,1.53228,2442.6,2442.5,0.81849]
[1750940507604,0.81852,2442.5,2442.4,0.81852]
[1750940507909,1.53228,2442.6,2442.2,4.6438]
[1750940508402,1.53228,2442.6,2442.5,0.81849]
[1750940508606,0.81851,2442.5,2442.4,0.81852]
[1750940509307,0.81856,2442.3,2442.2,3.2078]
[1750940509513,2.65140978,2442.5,2442.3,0.81856]
[1750940509702,2.65140978,2442.5,2442.2,4.02637]
[1750940510008,0.81855,2442.4,2442.2,4.02637]
[1750940510600,0.81856,2442.3,2442.2,4.02637]
[1750940510902,0.81855,2442.4,2442.3,0.81856]
[1750940511101,3.46992978,2442.5,2442.4,0.81853]
[1750940511602,2.65140978,2442.5,2442.4,0.81853]
[1750940511804,0.7138,2442.6,2442.5,0.81849]
[1750940512213,0.7138,2442.6,2442.4,0.81851]
[1750940512410,0.81849,2442.5,2442.4,0.81851]
[1750940512606,1.53229,2442.6,2442.3,2.0274]
[1750940512805,0.7138,2442.6,2442.3,0.6944]
[1750940513010,1.53228,2442.6,2442.5,0.81849]
[1750940513614,0.7138,2442.6,2442.5,0.81849]
[1750940514116,1.53226,2442.6,2442.5,0.81849]
[1750940515011,0.7138,2442.6,2442.5,0.81849]
[1750940515406,0.7138,2442.6,2442.3,2.0274]
[1750940515716,3.46990978,2442.5,2442.3,1.51294]
[1750940515915,0.81853,2442.4,2442.3,1.51295]
[1750940516114,2.65140978,2442.5,2442.2,3.2078]
[1750940516417,5.85920978,2442.3,2442.2,0.81859]
[1750940516610,0.81854,2442.4,2442.2,0.81859]
[1750940516805,4.5992,2442.6,2442.3,0.81855]
[1750940517002,13.76260978,2442.6,2442.1,0.7044]
[1750940517202,13.76260978,2442.6,2441.6,3.2078]
[1750940517203,5.85920978,2442.2,2441.6,3.2078]
[1750940517407,3.2078,2442.2,2441.6,5.85920978]
[1750940517602,4.0264,2442.2,2442.0,0.81864]
[1750940517809,3.8785,2442.5,2442.4,0.81853]
[1750940518015,3.8785,2442.5,2442.1,2.027]
[1750940518407,2.65140978,2442.4,2442.3,0.81856]
[1750940518603,3.46993978,2442.4,2442.2,2.14117]
[1750940519205,0.81856,2442.3,2442.1,1.52301]
[1750940519609,2.65140978,2442.2,2442.0,3.2078]
[1750940519913,0.7296,2442.4,2442.3,0.81856]
[1750940519914,2.65140978,2442.4,2442.3,0.81856]
[1750940520113,4.697,2442.5,2442.3,0.81856]
[1750940520315,3.8785,2442.5,2442.4,0.81853]
[1750940520524,0.6707,2442.5,2442.4,0.81853]
[1750940521214,1.48919,2442.5,2442.3,0.81854]
[1750940521413,3.2078,2442.8,2442.3,2.04641]
[1750940521612,2.65140978,2443.0,2442.5,3.2078]
[1750940521816,1.74544288,2442.9,2442.6,0.81844]
[1750940522124,0.92708288,2442.8,2442.7,0.81843]
[1750940522317,0.81846,2442.6,2442.5,4.6254]
[1750940522619,0.81846,2442.6,2442.1,3.2078]
[1750940522620,5.85920978,2442.6,2442.1,3.2078]
[1750940522818,3.46999978,2442.2,2442.1,3.8903]
[1750940523116,4.04720978,2442.5,2442.1,3.8903]
[1750940523326,0.81858,2442.3,2442.1,6.12651]
[1750940523519,4.04720978,2442.5,2442.1,6.12651]
[1750940523520,0.81859,2442.2,2442.1,6.12651]
[1750940523709,0.81864,2442.1,2441.8,3.8903]
[1750940523914,3.47004978,2442.1,2441.9,0.81867]
[1750940524213,0.81869,2441.9,2441.8,0.6825]
[1750940524619,0.81864,2442.1,2441.8,0.6825]
[1750940524816,0.81864,2442.1,2441.9,2.13996]
[1750940525317,0.81864,2442.1,2441.8,0.6825]
[1750940525318,0.81868,2442.0,2441.8,1.5012]
[1750940525518,2.65140978,2442.2,2441.8,0.6825]
[1750940525715,3.2078,2442.3,2442.2,0.81859]
[1750940525923,4.95366281,2442.3,2442.2,0.81859]
[1750940526220,2.21431,2442.5,2442.3,0.81853]
[1750940526413,0.81854,2442.4,2442.2,0.81857]
[1750940526718,4.04720978,2442.5,2442.1,1.3213]
[1750940526921,0.81858,2442.3,2442.1,2.13992]
[1750940527219,0.81858,2442.3,2442.2,1.50039]
[1750940527419,0.81858,2442.3,2442.2,0.6818]
[1750940527724,0.81854,2442.4,2442.2,0.6818]
[1750940527929,4.04720978,2442.5,2442.3,0.81855]
[1750940528223,0.92791793,2442.4,2442.3,0.81855]
[1750940529723,1.50523,2442.5,2442.4,0.81853]
[1750940529919,2.4339399,2442.5,2442.3,0.81854]
[1750940530225,0.6867,2442.5,2442.4,0.81853]
[1750940530418,1.61547533,2442.5,2442.4,0.81853]
[1750940531823,0.92877533,2442.5,2442.4,0.81853]
[1750940532623,0.81861,2442.2,2442.1,0.81862]
[1750940532823,3.46999978,2442.3,2442.1,0.81861]
[1750940533025,1.50294,2442.4,2442.3,0.81856]
[1750940533324,0.81856,2442.3,2442.2,0.81858]
[1750940533523,1.61352356,2442.4,2442.3,0.7163]
[1750940533524,0.81855,2442.4,2442.3,0.7163]
[1750940533714,0.9294312,2442.5,2442.3,0.7163]
[1750940533922,4.02627,2442.6,2442.5,0.81849]
[1750940534121,4.95577863,2442.6,2442.5,0.81849]
[1750940534325,4.13730863,2442.6,2442.5,0.81849]
[1750940534527,4.95579863,2442.6,2442.4,2.2791]
[1750940534728,0.92950863,2442.5,2442.4,2.2791]
[1750940535329,0.81853,2442.4,2442.3,1.53484]
[1750940535528,0.8185,2442.5,2442.3,1.53484]
[1750940535829,1.74853891,2442.4,2442.3,1.53484]
[1750940536025,0.93000891,2442.4,2442.3,1.53484]
[1750940536336,1.74853891,2442.4,2442.3,1.53484]
[1750940536526,0.93000891,2442.4,2442.3,1.53484]
[1750940537931,1.74853891,2442.4,2442.3,1.53484]
[1750940538731,0.93000891,2442.4,2442.3,1.53484]
[1750940540229,0.93000891,2442.4,2442.3,2.90594]
[1750940542739,5.64446414,2442.9,2442.8,0.81839]
[1750940543030,2.43666414,2443.0,2442.9,0.81836]
[1750940543224,1.3461,2443.1,2442.6,4.09140978]
[1750940543225,3.78276414,2443.1,2442.6,4.09140978]
[1750940543534,0.81835,2443.0,2442.8,0.81837]